[Event "Championnat d'Europe de Blitz"]
[Date "2024.12.09"]
[White "Quparadze, Giga"]
[Black "Kuzubov, Yuriy"]
[WhiteElo "2537"]
[BlackElo "2595"]
[Round "11.11"]
[Result "1/2-1/2"]
[TimeControl "180+2"]

1. e4 {[%emt 00:15:00] [%clk 00:03:03]} e6 {[%clk 00:03:03]} 2. d4 {[%emt
00:00:02] [%clk 00:03:04]} d5 {[%clk 00:03:04]} 3. Nd2 {[%clk 00:03:05]} Nc6
{[%emt 00:00:04] [%clk 00:03:02]} 4. Ngf3 {[%emt 00:00:04] [%clk 00:03:03]} Nf6
{[%emt 00:00:01] [%clk 00:03:03]} 5. e5 {[%emt 00:00:02] [%clk 00:03:03]} Nd7
{[%emt 00:00:02] [%clk 00:03:04]} 6. Nb3 {[%emt 00:00:01] [%clk 00:03:03]} a5
{[%emt 00:00:19] [%clk 00:02:46]} 7. a4 {[%emt 00:00:04] [%clk 00:03:02]} b6
{[%emt 00:00:05] [%clk 00:02:43]} 8. Bb5 {[%emt 00:00:03] [%clk 00:03:01]} Ndb8
{[%emt 00:00:38] [%clk 00:02:07]} 9. Bg5 {[%emt 00:00:05] [%clk 00:02:58]} Qd7
{[%emt 00:00:09] [%clk 00:02:01]} 10. O-O {[%emt 00:00:02] [%clk 00:02:57]} Ba6
{[%emt 00:00:02] [%clk 00:02:00]} 11. Bxa6 {[%emt 00:00:09] [%clk 00:02:50]}
Nxa6 {[%emt 00:00:04] [%clk 00:01:58]} 12. Qe2 {[%emt 00:00:08] [%clk 00:02:44]}
h6 {[%emt 00:00:04] [%clk 00:01:57]} 13. Bd2 {[%emt 00:00:01] [%clk 00:02:45]}
Be7 {[%emt 00:00:06] [%clk 00:01:54]} 14. Ne1 {[%emt 00:00:03] [%clk 00:02:43]}
O-O {[%emt 00:00:09] [%clk 00:01:46]} 15. f4 {[%clk 00:02:44]} Nd8 {[%emt
00:00:14] [%clk 00:01:35]} 16. Nf3 {[%emt 00:00:03] [%clk 00:02:43]} c5 {[%emt
00:00:05] [%clk 00:01:32]} 17. c3 {[%emt 00:00:05] [%clk 00:02:40]} Nc6 {[%emt
00:00:06] [%clk 00:01:28]} 18. Be3 {[%emt 00:00:03] [%clk 00:02:39]} cxd4 {[%emt
00:00:13] [%clk 00:01:17]} 19. Nbxd4 {[%emt 00:00:15] [%clk 00:02:26]} Nc5
{[%emt 00:00:09] [%clk 00:01:10]} 20. Nxc6 {[%emt 00:00:03] [%clk 00:02:25]}
Qxc6 {[%emt 00:00:01] [%clk 00:01:11]} 21. Nd4 {[%emt 00:00:01] [%clk 00:02:26]}
Qc7 {[%emt 00:00:04] [%clk 00:01:09]} 22. Nb5 {[%emt 00:00:16] [%clk 00:02:12]}
Qb7 {[%emt 00:00:17] [%clk 00:00:54]} 23. f5 {[%emt 00:00:04] [%clk 00:02:09]}
exf5 {[%emt 00:00:09] [%clk 00:00:48]} 24. Rxf5 {[%emt 00:00:03] [%clk
00:02:08]} Ne6 {[%emt 00:00:06] [%clk 00:00:44]} 25. Raf1 {[%emt 00:00:01] [%clk
00:02:08]} Qd7 {[%emt 00:00:13] [%clk 00:00:33]} 26. Bxb6 {[%emt 00:00:05] [%clk
00:02:04]} Nc5 {[%emt 00:00:11] [%clk 00:00:24]} 27. Bxc5 {[%emt 00:00:13] [%clk
00:01:54]} Bxc5+ {[%clk 00:00:26]} 28. Kh1 {[%emt 00:00:01] [%clk 00:01:54]}
Rae8 {[%emt 00:00:07] [%clk 00:00:21]} 29. h3 {[%emt 00:00:19] [%clk 00:01:37]}
Re7 {[%emt 00:00:02] [%clk 00:00:22]} 30. Qg4 {[%emt 00:00:19] [%clk 00:01:19]}
Rfe8 {[%emt 00:00:08] [%clk 00:00:16]} 31. b4 {[%emt 00:00:03] [%clk 00:01:19]}
Bb6 {[%emt 00:00:02] [%clk 00:00:15]} 32. Nd6 {[%emt 00:00:02] [%clk 00:01:18]}
Rf8 {[%emt 00:00:06] [%clk 00:00:12]} 33. Qf3 {[%emt 00:00:10] [%clk 00:01:10]}
Qe6 {[%emt 00:00:04] [%clk 00:00:10]} 34. Qg3 {[%emt 00:00:11] [%clk 00:01:01]}
Bc7 {[%emt 00:00:02] [%clk 00:00:11]} 35. bxa5 {[%emt 00:00:07] [%clk 00:00:55]}
Bxd6 {[%emt 00:00:04] [%clk 00:00:10]} 36. exd6 {[%emt 00:00:02] [%clk
00:00:54]} Rd7 {[%emt 00:00:03] [%clk 00:00:09]} 37. Rf6 {[%emt 00:00:03] [%clk
00:00:53]} Qe2 {[%emt 00:00:04] [%clk 00:00:07]} 38. Kh2 {[%emt 00:00:11] [%clk
00:00:43]} Re8 {[%emt 00:00:03] [%clk 00:00:07]} 39. R1f2 {[%emt 00:00:13] [%clk
00:00:32]} Qe5 {[%emt 00:00:02] [%clk 00:00:07]} 40. Qxe5 {[%emt 00:00:05] [%clk
00:00:28]} Rxe5 {[%emt 00:00:01] [%clk 00:00:09]} 41. R6f4 {[%emt 00:00:03]
[%clk 00:00:27]} Re6 {[%emt 00:00:02] [%clk 00:00:09]} 42. Rd4 {[%emt 00:00:02]
[%clk 00:00:27]} Rexd6 {[%emt 00:00:02] [%clk 00:00:09]} 43. Rfd2 {[%emt
00:00:01] [%clk 00:00:28]} Ra7 {[%emt 00:00:05] [%clk 00:00:07]} 44. Rxd5 {[%emt
00:00:01] [%clk 00:00:28]} Rc6 {[%emt 00:00:01] [%clk 00:00:08]} 45. R2d3 {[%emt
00:00:02] [%clk 00:00:27]} Rc4 {[%emt 00:00:02] [%clk 00:00:09]} 46. Rd8+ {[%emt
00:00:06] [%clk 00:00:23]} Kh7 {[%clk 00:00:10]} 47. R8d7 {[%clk 00:00:24]} Rxa5
{[%emt 00:00:06] [%clk 00:00:07]} 48. Rxf7 {[%emt 00:00:02] [%clk 00:00:25]}
Rcxa4 {[%emt 00:00:02] [%clk 00:00:07]} 49. Rg3 {[%emt 00:00:03] [%clk
00:00:23]} Rg5 {[%emt 00:00:01] [%clk 00:00:07]} 50. Rxg5 {[%emt 00:00:01] [%clk
00:00:24]} hxg5 {[%clk 00:00:09]} 51. Rc7 {[%emt 00:00:01] [%clk 00:00:25]} Kg6
{[%emt 00:00:02] [%clk 00:00:09]} 52. Kg3 {[%emt 00:00:01] [%clk 00:00:26]} Rf4
{[%emt 00:00:03] [%clk 00:00:08]} 53. Rc6+ {[%emt 00:00:01] [%clk 00:00:27]} Kf5
{[%emt 00:00:03] [%clk 00:00:07]} 54. Kh2 {[%emt 00:00:03] [%clk 00:00:25]} Re4
{[%emt 00:00:02] [%clk 00:00:07]} 55. Rc5+ {[%emt 00:00:03] [%clk 00:00:25]} Kf6
{[%emt 00:00:02] [%clk 00:00:08]} 56. Kg3 {[%emt 00:00:01] [%clk 00:00:24]} Rf4
{[%emt 00:00:02] [%clk 00:00:09]} 57. c4 {[%emt 00:00:01] [%clk 00:00:26]} Rd4
{[%emt 00:00:05] [%clk 00:00:06]} 58. Rc8 {[%emt 00:00:01] [%clk 00:00:26]} Kf5
{[%emt 00:00:02] [%clk 00:00:06]} 59. c5 {[%emt 00:00:02] [%clk 00:00:27]} Rd3+
{[%emt 00:00:01] [%clk 00:00:06]} 60. Kf2 {[%emt 00:00:01] [%clk 00:00:28]} Rd2+
{[%emt 00:00:02] [%clk 00:00:06]} 61. Kf3 {[%clk 00:00:29]} Rd3+ {[%clk
00:00:08]} 62. Ke2 {[%clk 00:00:30]} Rg3 {[%emt 00:00:02] [%clk 00:00:08]} 63.
Kf2 {[%emt 00:00:01] [%clk 00:00:32]} Rc3 {[%emt 00:00:01] [%clk 00:00:09]} 64.
c6 {[%clk 00:00:33]} Ke6 {[%emt 00:00:05] [%clk 00:00:06]} 65. Ke2 {[%emt
00:00:06] [%clk 00:00:28]} Kd6 {[%emt 00:00:03] [%clk 00:00:06]} 66. Rg8 {[%emt
00:00:04] [%clk 00:00:26]} Rxc6 {[%emt 00:00:04] [%clk 00:00:04]} 67. Rxg7
{[%clk 00:00:27]} Rc5 {[%emt 00:00:02] [%clk 00:00:05]} 68. Kf3 {[%emt 00:00:03]
[%clk 00:00:25]} Ke6 {[%emt 00:00:01] [%clk 00:00:06]} 69. Kg4 {[%emt 00:00:01]
[%clk 00:00:26]} Kf6 {[%emt 00:00:02] [%clk 00:00:07]} 70. Rg8 {[%emt 00:00:01]
[%clk 00:00:26]} Rc4+ {[%emt 00:00:01] [%clk 00:00:08]} 71. Kg3 {[%clk
00:00:27]} Rc3+ {[%clk 00:00:10]} 72. Kh2 {[%emt 00:00:01] [%clk 00:00:28]} Ra3
{[%emt 00:00:01] [%clk 00:00:11]} 73. Rc8 {[%emt 00:00:02] [%clk 00:00:29]} Kg6
{[%emt 00:00:01] [%clk 00:00:12]} 74. Rc6+ {[%clk 00:00:30]} Kg7 {[%emt
00:00:01] [%clk 00:00:12]} 75. Kg1 {[%emt 00:00:02] [%clk 00:00:30]} Ra2 {[%emt
00:00:01] [%clk 00:00:12]} 76. Re6 {[%emt 00:00:01] [%clk 00:00:31]} Rb2 {[%emt
00:00:02] [%clk 00:00:13]} 77. Kf1 {[%clk 00:00:32]} Kf7 {[%emt 00:00:01] [%clk
00:00:14]} 78. Re2 {[%clk 00:00:33]} Rb3 {[%emt 00:00:02] [%clk 00:00:15]} 79.
Kf2 {[%clk 00:00:34]} Kf6 {[%emt 00:00:01] [%clk 00:00:17]} 80. Re3 {[%emt
00:00:01] [%clk 00:00:35]} Rb4 {[%emt 00:00:01] [%clk 00:00:17]} 81. Kg3 {[%clk
00:00:36]} Kf5 {[%emt 00:00:01] [%clk 00:00:18]} 82. Ra3 {[%emt 00:00:01] [%clk
00:00:37]} Rc4 {[%emt 00:00:02] [%clk 00:00:19]} 83. Kf3 {[%emt 00:00:01] [%clk
00:00:38]} Rb4 {[%emt 00:00:01] [%clk 00:00:19]} 84. Ra5+ {[%emt 00:00:03] [%clk
00:00:37]} Kf6 {[%emt 00:00:01] [%clk 00:00:20]} 85. Rd5 {[%clk 00:00:37]} Rb3+
{[%emt 00:00:02] [%clk 00:00:19]} 86. Ke4 {[%emt 00:00:01] [%clk 00:00:38]} Rg3
{[%emt 00:00:03] [%clk 00:00:19]} 87. Rd2 {[%emt 00:00:01] [%clk 00:00:39]} Ke6
{[%emt 00:00:03] [%clk 00:00:18]} 88. Ra2 {[%emt 00:00:01] [%clk 00:00:40]} Kf6
{[%emt 00:00:02] [%clk 00:00:18]} 89. Rc2 {[%clk 00:00:41]} Ke6 {[%clk
00:00:20]} 90. Rf2 {[%clk 00:00:42]} Ra3 {[%emt 00:00:03] [%clk 00:00:19]} 91.
Rf8 {[%emt 00:00:02] [%clk 00:00:42]} Rg3 {[%emt 00:00:01] [%clk 00:00:20]} 92.
Rf2 {[%emt 00:00:01] [%clk 00:00:43]} Ra3 {[%emt 00:00:01] [%clk 00:00:21]} 93.
Kd4 {[%emt 00:00:01] [%clk 00:00:44]} Ra4+ {[%emt 00:00:02] [%clk 00:00:21]} 94.
Ke3 {[%clk 00:00:45]} Ra3+ {[%emt 00:00:01] [%clk 00:00:23]} 95. Ke4 {[%clk
00:00:46]} Rg3 {[%emt 00:00:01] [%clk 00:00:24]} 96. Rd2 {[%emt 00:00:06] [%clk
00:00:43]} Kf6 {[%emt 00:00:03] [%clk 00:00:22]} 97. Kd5 {[%emt 00:00:01] [%clk
00:00:44]} Ra3 {[%emt 00:00:04] [%clk 00:00:21]} 98. Rf2+ {[%clk 00:00:44]} Kg6
{[%emt 00:00:02] [%clk 00:00:22]} 99. Ke4 {[%emt 00:00:01] [%clk 00:00:45]} Ra4+
{[%emt 00:00:01] [%clk 00:00:23]} 100. Kf3 {[%clk 00:00:46]} Ra3+ {[%emt
00:00:01] [%clk 00:00:24]} 101. Kg4 {[%emt 00:00:01] [%clk 00:00:47]} Ra4+
{[%clk 00:00:26]} 102. Kg3 {[%emt 00:00:01] [%clk 00:00:48]} Ra3+ {[%emt
00:00:02] [%clk 00:00:26]} 103. Rf3 {[%clk 00:00:49]} Ra2 {[%emt 00:00:02] [%clk
00:00:27]} 104. Re3 {[%emt 00:00:01] [%clk 00:00:50]} Rb2 {[%emt 00:00:01] [%clk
00:00:28]} 105. Kf3 {[%clk 00:00:51]} Kf5 {[%emt 00:00:01] [%clk 00:00:28]} 106.
g4+ {[%emt 00:00:02] [%clk 00:00:52]} Kf6 {[%emt 00:00:01] [%clk 00:00:30]} 107.
Rc3 {[%emt 00:00:02] [%clk 00:00:52]} Rh2 {[%emt 00:00:05] [%clk 00:00:26]} 108.
Ke4 {[%emt 00:00:01] [%clk 00:00:52]} Re2+ {[%emt 00:00:01] [%clk 00:00:27]}
109. Re3 {[%emt 00:00:03] [%clk 00:00:52]} Ra2 {[%emt 00:00:01] [%clk 00:00:29]}
110. Rf3+ {[%emt 00:00:01] [%clk 00:00:53]} Kg6 {[%emt 00:00:02] [%clk
00:00:28]} 111. Rd3 {[%emt 00:00:01] [%clk 00:00:53]} Re2+ {[%emt 00:00:02]
[%clk 00:00:29]} 112. Kd5 {[%emt 00:00:01] [%clk 00:00:54]} Re1 {[%emt 00:00:02]
[%clk 00:00:29]} 113. Kd4 {[%emt 00:00:01] [%clk 00:00:55]} Re2 {[%emt 00:00:02]
[%clk 00:00:29]} 114. Re3 {[%clk 00:00:56]} Ra2 {[%emt 00:00:01] [%clk
00:00:30]} 115. Re6+ {[%emt 00:00:02] [%clk 00:00:56]} Kf7 {[%emt 00:00:01]
[%clk 00:00:31]} 116. Rc6 {[%emt 00:00:01] [%clk 00:00:57]} Rh2 {[%emt 00:00:02]
[%clk 00:00:30]} 117. Rc3 {[%emt 00:00:02] [%clk 00:00:58]} Kf6 {[%emt 00:00:01]
[%clk 00:00:31]} 118. Ke4 {[%emt 00:00:03] [%clk 00:00:57]} Re2+ {[%emt
00:00:01] [%clk 00:00:32]} 119. Re3 {[%emt 00:00:01] [%clk 00:00:58]} Ra2 {[%emt
00:00:01] [%clk 00:00:33]} 120. Rf3+ {[%emt 00:00:01] [%clk 00:00:59]} Kg6
{[%emt 00:00:01] [%clk 00:00:34]} 121. Rd3 {[%emt 00:00:01] [%clk 00:01:00]}
Re2+ {[%emt 00:00:03] [%clk 00:00:33]} 122. Kd4 {[%emt 00:00:01] [%clk
00:01:00]} Kf6 {[%emt 00:00:03] [%clk 00:00:33]} 123. Rf3+ {[%clk 00:01:01]} Kg6
{[%emt 00:00:01] [%clk 00:00:34]} 124. Re3 {[%clk 00:01:02]} Rd2+ {[%emt
00:00:01] [%clk 00:00:35]} 125. Ke5 {[%emt 00:00:01] [%clk 00:01:03]} Ra2 {[%emt
00:00:04] [%clk 00:00:33]} 126. Ke6 {[%emt 00:00:01] [%clk 00:01:05]} Ra6+
{[%emt 00:00:04] [%clk 00:00:31]} 127. Ke7 {[%clk 00:01:06]} Ra7+ {[%emt
00:00:06] [%clk 00:00:27]} 128. Kf8 {[%emt 00:00:01] [%clk 00:01:06]} Ra8+
{[%emt 00:00:05] [%clk 00:00:25]} 129. Re8 {[%emt 00:00:05] [%clk 00:01:03]} Ra3
{[%emt 00:00:03] [%clk 00:00:24]} 130. Re6+ {[%emt 00:00:07] [%clk 00:00:58]}
Kh7 {[%emt 00:00:01] [%clk 00:00:25]} 131. Re7+ {[%emt 00:00:01] [%clk
00:00:59]} Kg6 {[%emt 00:00:02] [%clk 00:00:25]} 132. Re6+ {[%emt 00:00:08]
[%clk 00:00:53]} Kh7 {[%clk 00:00:27]} 133. Kf7 {[%emt 00:00:08] [%clk
00:00:47]} Rxh3 {[%emt 00:00:03] [%clk 00:00:25]} 134. Kf6 {[%emt 00:00:03]
[%clk 00:00:46]} Rh6+ {[%emt 00:00:02] [%clk 00:00:25]} 135. Kf5 {[%emt
00:00:02] [%clk 00:00:47]} Rxe6 {[%emt 00:00:02] [%clk 00:00:25]} 136. Kxe6
{[%clk 00:00:47]} Kg6 {[%emt 00:00:01] [%clk 00:00:26]} 137. Ke5 {[%emt
00:00:02]} 1/2-1/2

[Site "Europe Echecs"]

[Event "Championnat d'Europe de Blitz"]
[Date "2024.12.09"]
[White "Georgiev, Kiril"]
[Black "Safarli, Eltaj"]
[WhiteElo "2537"]
[BlackElo "2610"]
[Round "11.12"]
[Result "0-1"]
[TimeControl "180+2"]

1. d4 {[%emt 00:00:17] [%clk 00:02:45]} Nf6 {[%emt 00:00:02] [%clk 00:03:03]} 2.
c4 {[%emt 00:00:03] [%clk 00:02:44]} g6 {[%emt 00:00:01] [%clk 00:03:03]} 3. Nc3
{[%emt 00:00:08] [%clk 00:02:38]} d5 {[%emt 00:00:01] [%clk 00:03:04]} 4. cxd5
{[%emt 00:00:07] [%clk 00:02:33]} Nxd5 {[%emt 00:00:01] [%clk 00:03:05]} 5. Nf3
{[%emt 00:00:04] [%clk 00:02:31]} Bg7 {[%emt 00:00:02] [%clk 00:03:05]} 6. Na4
{[%emt 00:00:02] [%clk 00:02:31]} O-O {[%emt 00:00:18] [%clk 00:02:49]} 7. e4
{[%emt 00:00:02] [%clk 00:02:31]} Nb6 {[%emt 00:00:01] [%clk 00:02:50]} 8. Be3
{[%emt 00:00:01] [%clk 00:02:32]} Nxa4 {[%emt 00:00:21] [%clk 00:02:32]} 9. Qxa4
{[%emt 00:00:02] [%clk 00:02:32]} c5 {[%clk 00:02:33]} 10. Rd1 {[%emt 00:00:02]
[%clk 00:02:31]} cxd4 {[%emt 00:00:06] [%clk 00:02:29]} 11. Nxd4 {[%emt
00:00:02] [%clk 00:02:31]} Qc7 {[%emt 00:01:07] [%clk 00:01:24]} 12. Nb5 {[%emt
00:00:19] [%clk 00:02:14]} Qe5 {[%emt 00:00:12] [%clk 00:01:14]} 13. Be2 {[%emt
00:00:24] [%clk 00:01:52]} Nc6 {[%emt 00:00:05] [%clk 00:01:12]} 14. Rd2 {[%emt
00:00:14] [%clk 00:01:40]} a6 {[%emt 00:00:10] [%clk 00:01:04]} 15. Nc3 {[%emt
00:00:05] [%clk 00:01:36]} Be6 {[%emt 00:00:05] [%clk 00:01:01]} 16. O-O {[%emt
00:00:06] [%clk 00:01:33]} b5 {[%clk 00:01:03]} 17. Qd1 {[%emt 00:00:09]} Rfd8
{[%clk 00:00:59]} 18. f4 {[%emt 00:00:03] [%clk 00:01:31]} Qc7 {[%emt 00:00:02]
[%clk 00:00:59]} 19. Nd5 {[%emt 00:00:03] [%clk 00:01:30]} Bxd5 {[%emt 00:00:01]
[%clk 00:00:59]} 20. exd5 {[%emt 00:00:02] [%clk 00:01:30]} Na5 {[%emt 00:00:04]
[%clk 00:00:58]} 21. b3 {[%emt 00:00:03] [%clk 00:01:28]} Nb7 {[%emt 00:00:17]
[%clk 00:00:43]} 22. Bf3 {[%emt 00:00:02] [%clk 00:01:28]} Nd6 {[%emt 00:00:03]
[%clk 00:00:42]} 23. g3 {[%emt 00:00:01] [%clk 00:01:29]} Nf5 {[%emt 00:00:04]
[%clk 00:00:42]} 24. Bf2 {[%clk 00:01:29]} Rac8 {[%emt 00:00:03] [%clk
00:00:41]} 25. Qe2 {[%emt 00:00:02] [%clk 00:01:30]} h5 {[%emt 00:00:03] [%clk
00:00:40]} 26. Rfd1 {[%emt 00:00:02] [%clk 00:01:30]} Bf6 {[%clk 00:00:41]} 27.
Kg2 {[%emt 00:00:01] [%clk 00:01:30]} Qa5 {[%emt 00:00:02] [%clk 00:00:41]} 28.
Be4 {[%emt 00:00:05] [%clk 00:01:27]} Nd6 {[%emt 00:00:05]} 29. Bf3 {[%clk
00:01:25]} Rc3 {[%emt 00:00:02] [%clk 00:00:42]} 30. Be1 {[%emt 00:00:07] [%clk
00:01:21]} Qb6 {[%emt 00:00:07] [%clk 00:00:37]} 31. Rc2 {[%emt 00:00:03] [%clk
00:01:19]} Rxc2 {[%emt 00:00:02] [%clk 00:00:38]} 32. Qxc2 {[%emt 00:00:01]
[%clk 00:01:20]} Nf5 {[%emt 00:00:01] [%clk 00:00:39]} 33. Bf2 {[%emt 00:00:02]
[%clk 00:01:19]} Qb8 {[%emt 00:00:21] [%clk 00:00:20]} 34. Qe2 {[%emt 00:00:07]
[%clk 00:01:14]} Rc8 {[%emt 00:00:03] [%clk 00:00:20]} 35. Be4 {[%emt 00:00:01]
[%clk 00:01:14]} Nd6 {[%emt 00:00:02] [%clk 00:00:21]} 36. Bb1 {[%clk 00:01:15]}
Rc3 {[%emt 00:00:06] [%clk 00:00:18]} 37. Be1 {[%emt 00:00:03] [%clk 00:01:14]}
Rc5 {[%emt 00:00:01] [%clk 00:00:18]} 38. f5 {[%emt 00:00:02] [%clk 00:01:14]}
Nxf5 {[%emt 00:00:04] [%clk 00:00:16]} 39. Bxf5 {[%emt 00:00:02] [%clk
00:01:14]} gxf5 {[%emt 00:00:01] [%clk 00:00:18]} 40. Bf2 {[%emt 00:00:04] [%clk
00:01:11]} Rc3 {[%emt 00:00:01] [%clk 00:00:19]} 41. Qxh5 {[%emt 00:00:03] [%clk
00:01:10]} Qe5 {[%clk 00:00:20]} 42. Rd2 {[%emt 00:00:04] [%clk 00:01:07]} Qe4+
{[%emt 00:00:02] [%clk 00:00:22]} 43. Kh3 {[%emt 00:00:02] [%clk 00:01:06]} Rd3
{[%emt 00:00:19] [%clk 00:00:06]} 44. Rxd3 {[%emt 00:00:28] [%clk 00:00:39]}
Qxd3 {[%clk 00:00:08]} 45. d6 {[%emt 00:00:02] [%clk 00:00:39]} Qf1# {[%emt
00:00:01] [%clk 00:00:08]} 0-1

[Site "Europe Echecs"]

[Event "Championnat d'Europe de Blitz"]
[Date "2024.12.09"]
[White "Sargissian, Gabriel"]
[Black "Boyer, Mahel"]
[WhiteElo "2628"]
[BlackElo "2526"]
[Round "11.13"]
[Result "0-1"]
[TimeControl "180+2"]

1. d4 {[%emt 00:00:21] [%clk 00:02:43]} g6 {[%emt 00:00:01] [%clk 00:03:03]} 2.
Nf3 {[%emt 00:00:04] [%clk 00:02:40]} Bg7 {[%emt 00:00:01] [%clk 00:03:05]} 3.
g3 {[%emt 00:00:03] [%clk 00:02:40]} c5 {[%clk 00:03:05]} 4. d5 {[%emt 00:00:11]
[%clk 00:02:31]} d6 {[%emt 00:00:01] [%clk 00:03:06]} 5. Bg2 {[%emt 00:00:01]
[%clk 00:02:31]} b5 {[%emt 00:00:02] [%clk 00:03:07]} 6. O-O {[%emt 00:00:03]
[%clk 00:02:30]} Nf6 {[%emt 00:00:01] [%clk 00:03:08]} 7. Re1 {[%emt 00:00:04]
[%clk 00:02:28]} Nbd7 {[%emt 00:00:13] [%clk 00:02:57]} 8. e4 {[%emt 00:00:01]
[%clk 00:02:28]} O-O {[%emt 00:00:07] [%clk 00:02:53]} 9. a4 {[%clk 00:02:29]}
b4 {[%emt 00:00:02] [%clk 00:02:53]} 10. Nbd2 {[%emt 00:00:09] [%clk 00:02:22]}
a5 {[%emt 00:00:08] [%clk 00:02:47]} 11. h3 {[%emt 00:00:14] [%clk 00:02:10]}
Re8 {[%emt 00:00:01] [%clk 00:02:48]} 12. Nc4 {[%emt 00:00:32] [%clk 00:01:40]}
Ba6 {[%emt 00:00:06] [%clk 00:02:44]} 13. Bf1 {[%emt 00:00:02] [%clk 00:01:40]}
Nb6 {[%emt 00:00:07] [%clk 00:02:39]} 14. Nxb6 {[%emt 00:00:28] [%clk 00:01:14]}
Qxb6 {[%emt 00:00:02] [%clk 00:02:38]} 15. Bxa6 {[%emt 00:00:03] [%clk
00:01:13]} Qxa6 {[%emt 00:00:02] [%clk 00:02:39]} 16. Kg2 {[%emt 00:00:05] [%clk
00:01:10]} e6 {[%emt 00:00:03] [%clk 00:02:38]} 17. Bg5 {[%emt 00:00:22] [%clk
00:00:50]} exd5 {[%emt 00:00:06] [%clk 00:02:35]} 18. Bxf6 {[%clk 00:00:50]}
dxe4 {[%emt 00:00:17] [%clk 00:02:20]} 19. Bxg7 {[%emt 00:00:01] [%clk
00:00:51]} exf3+ {[%emt 00:00:02] [%clk 00:02:21]} 20. Qxf3 {[%emt 00:00:01]
[%clk 00:00:51]} Kxg7 {[%emt 00:00:02] [%clk 00:02:21]} 21. Qd5 {[%emt 00:00:01]
[%clk 00:00:51]} Rab8 {[%emt 00:00:17] [%clk 00:02:07]} 22. b3 {[%emt 00:00:09]
[%clk 00:00:44]} Rxe1 {[%emt 00:00:13] [%clk 00:01:56]} 23. Rxe1 {[%emt
00:00:01] [%clk 00:00:45]} Qb7 {[%emt 00:00:01] [%clk 00:01:57]} 24. Qxb7 {[%emt
00:00:05] [%clk 00:00:42]} Rxb7 {[%emt 00:00:01] [%clk 00:01:58]} 25. Re8 {[%clk
00:00:43]} Ra7 {[%emt 00:00:37] [%clk 00:01:23]} 26. Rd8 {[%emt 00:00:02] [%clk
00:00:43]} Ra6 {[%emt 00:00:02] [%clk 00:01:23]} 27. Kf3 {[%emt 00:00:01] [%clk
00:00:43]} Rc6 {[%emt 00:00:40] [%clk 00:00:46]} 28. Ra8 {[%emt 00:00:17] [%clk
00:00:28]} c4 {[%clk 00:00:47]} 29. Rxa5 {[%emt 00:00:03] [%clk 00:00:27]} cxb3
{[%clk 00:00:48]} 30. cxb3 {[%emt 00:00:02] [%clk 00:00:27]} Rc3+ {[%emt
00:00:01] [%clk 00:00:49]} 31. Ke2 {[%emt 00:00:02] [%clk 00:00:27]} Rxb3 {[%emt
00:00:01] [%clk 00:00:51]} 32. Rb5 {[%emt 00:00:04] [%clk 00:00:25]} Kf6 {[%emt
00:00:05] [%clk 00:00:47]} 33. a5 {[%clk 00:00:26]} Rb2+ {[%emt 00:00:02] [%clk
00:00:47]} 34. Ke3 {[%emt 00:00:01] [%clk 00:00:27]} Ke6 {[%emt 00:00:09] [%clk
00:00:40]} 35. a6 {[%emt 00:00:02] [%clk 00:00:27]} Ra2 {[%emt 00:00:02] [%clk
00:00:41]} 36. Rxb4 {[%clk 00:00:28]} Ra3+ {[%emt 00:00:04] [%clk 00:00:39]} 37.
Ke2 {[%emt 00:00:01] [%clk 00:00:28]} Rxa6 {[%emt 00:00:01] [%clk 00:00:41]} 38.
h4 {[%clk 00:00:29]} Ra7 {[%emt 00:00:15] [%clk 00:00:28]} 39. Ke3 {[%emt
00:00:03] [%clk 00:00:28]} Kd5 {[%clk 00:00:29]} 40. Rb8 {[%emt 00:00:03] [%clk
00:00:27]} h5 {[%emt 00:00:02] [%clk 00:00:29]} 41. Rf8 {[%emt 00:00:02] [%clk
00:00:26]} Re7+ {[%emt 00:00:11] [%clk 00:00:21]} 42. Kd3 {[%emt 00:00:01] [%clk
00:00:27]} Ke5 {[%emt 00:00:03] [%clk 00:00:20]} 43. Ke3 {[%clk 00:00:28]} d5
{[%emt 00:00:03] [%clk 00:00:19]} 44. Kd3 {[%emt 00:00:04] [%clk 00:00:26]} Kf5
{[%emt 00:00:01] [%clk 00:00:20]} 45. f3 {[%clk 00:00:28]} Kf6 {[%emt 00:00:06]
[%clk 00:00:16]} 46. Kd4 {[%emt 00:00:01] [%clk 00:00:29]} Re2 {[%clk 00:00:17]}
47. Kxd5 {[%emt 00:00:09] [%clk 00:00:22]} Re3 {[%emt 00:00:02] [%clk 00:00:17]}
48. g4 {[%emt 00:00:05] [%clk 00:00:19]} Rxf3 {[%emt 00:00:02] [%clk 00:00:17]}
49. gxh5 {[%emt 00:00:03] [%clk 00:00:18]} Rf5+ {[%emt 00:00:01] [%clk
00:00:18]} 0-1

[Site "Europe Echecs"]